bitfinex/quotes_ETHUSD_20241101
["timestamp","ask_amount","ask_price","bid_price","bid_amount"]
[1730450998676,0.01,2506.1,2506.0,3.99042]
[1730450998874,0.01,2506.1,2505.9,3.99049]
[1730450999111,0.01,2506.1,2506.0,3.99042]
[1730451000584,0.86143007,2506.3,2506.0,7.98084]
[1730451000786,3.98963,2506.5,2506.1,3.99024]
[1730451000787,0.843,2506.5,2506.1,3.99024]
[1730451000958,0.01,2506.3,2506.2,3.9901]
[1730451002262,0.08973007,2506.5,2506.3,3.98987]
[1730451002567,0.01,2506.5,2506.3,3.98987]
[1730451003823,0.005,2506.3,2506.1,0.7733]
[1730451003981,0.7949,2506.3,2506.0,3.99031]
[1730451004320,0.87463007,2506.3,2506.0,7.98064]
[1730451004525,0.87463007,2506.3,2506.1,3.99023]
[1730451005077,0.7949,2506.3,2506.1,3.99023]
[1730451005310,0.7899,2506.3,2506.1,3.99023]
[1730451005672,0.7949,2506.3,2506.1,3.99023]
[1730451007376,0.87733007,2506.5,2506.2,3.9901]
[1730451007983,0.87733007,2506.5,2506.2,3.99002]
[1730451008312,0.005,2506.3,2506.2,3.99002]
[1730451008504,0.87733007,2506.5,2506.2,3.99002]
[1730451009001,0.005,2506.3,2506.2,3.99002]
[1730451009178,0.87733007,2506.5,2506.2,3.99002]
[1730451009520,0.07973007,2506.6,2506.3,3.98986]
[1730451009720,0.005,2506.5,2506.4,3.98978]
[1730451010291,7.34164394,2506.9,2506.5,3.98962]
[1730451010292,0.07973007,2506.8,2506.5,3.98962]
[1730451010509,0.08473007,2506.7,2506.4,3.98978]
[1730451010708,0.005,2506.7,2506.2,0.8169]
[1730451010940,0.005,2506.7,2506.6,3.98946]
[1730451011426,0.005,2506.9,2506.7,3.98925]
[1730451012328,0.005,2506.9,2506.8,3.98914]
[1730451012532,3.7783,2507.1,2506.8,3.98914]
[1730451012533,0.86303007,2507.1,2506.8,3.98903]
[1730451012829,0.005,2506.9,2506.7,7.97849]
[1730451013037,0.005,2506.9,2506.7,3.98921]
[1730451014226,0.86303007,2507.1,2506.8,3.98913]
[1730451014700,0.7833,2507.1,2506.8,3.98914]
[1730451014910,0.005,2507.1,2506.9,3.98897]
[1730451015342,0.07973007,2507.2,2506.9,3.98897]
[1730451016113,0.89033007,2507.3,2507.0,3.9888]
[1730451016297,0.8106,2507.3,2506.9,3.98897]
[1730451016499,0.005,2507.3,2507.1,3.98863]
[1730451016699,0.005,2507.3,2507.1,3.98857]
[1730451016939,0.08473007,2507.5,2507.3,3.98834]
[1730451017097,0.005,2507.5,2507.3,3.98834]
[1730451017297,0.07973007,2507.6,2507.3,3.98834]
[1730451018407,0.07973007,2507.6,2507.1,3.98852]
[1730451018613,0.07973007,2507.6,2507.1,7.97709]
[1730451018837,0.005,2507.5,2507.1,7.97709]
[1730451019162,0.005,2507.5,2507.1,3.98852]
[1730451020245,0.005,2507.5,2507.2,3.98847]
[1730451021520,0.005,2507.5,2507.1,3.98852]
[1730451021711,0.005,2507.5,2507.2,3.98839]
[1730451022134,0.005,2507.5,2507.1,3.98852]
[1730451022709,0.005,2507.5,2507.1,7.9771]
[1730451022951,0.005,2507.5,2507.1,3.98852]
[1730451023149,0.005,2507.3,2506.7,3.98923]
[1730451023350,0.005,2507.0,2506.7,3.98923]
[1730451023548,0.005,2507.0,2506.5,4.8031]
[1730451023714,0.7701,2506.9,2506.5,4.80304]
[1730451023915,0.7701,2506.9,2506.5,3.98954]
[1730451024147,0.7701,2506.9,2506.6,3.98945]
[1730451024353,0.005,2506.7,2506.3,4.80336]
[1730451024664,0.005,2506.7,2506.2,3.9901]
[1730451024665,0.7701,2506.6,2506.2,3.9901]
[1730451025012,0.7701,2506.6,2506.3,3.98992]
[1730451025313,0.7701,2506.6,2506.3,3.98985]
[1730451025529,0.005,2506.7,2506.4,3.98968]
[1730451025724,0.08473007,2506.7,2506.4,3.98968]
[1730451026427,0.08473007,2506.7,2506.3,7.9797]
[1730451026633,0.08473007,2506.7,2506.4,3.98975]
[1730451026954,0.08473007,2506.7,2506.3,3.98985]
[1730451027459,0.005,2506.7,2506.4,3.98974]
[1730451029967,0.84983007,2506.8,2506.1,3.99015]
[1730451029968,0.005,2506.2,2506.1,3.99015]
[1730451031058,0.005,2506.2,2505.9,3.99052]
[1730451031059,0.7856,2506.2,2505.9,7.98101]
[1730451031367,0.7856,2506.2,2505.6,0.7918]
[1730451031368,0.7856,2506.2,2505.8,3.99074]
[1730451031570,0.7856,2506.2,2505.7,3.99087]
[1730451031864,0.07973007,2506.1,2505.7,3.99087]
[1730451032033,0.07973007,2506.1,2505.7,7.98168]
[1730451032230,0.07973007,2506.1,2505.8,0.08260805]
[1730451032434,0.07973007,2506.1,2505.7,3.99081]
[1730451032633,0.07973007,2506.1,2505.9,0.08257693]
[1730451032858,0.07973007,2506.1,2505.8,3.99063]
[1730451033133,0.07973007,2506.1,2506.0,0.08254581]
[1730451033345,0.86533007,2506.2,2506.0,3.9904]
[1730451033540,0.86533007,2506.2,2506.0,0.08254581]
[1730451033541,0.7856,2506.2,2506.0,0.08254581]
[1730451034262,0.7856,2506.2,2506.0,4.07293581]
[1730451036653,0.005,2506.2,2506.0,4.07293581]
[1730451037336,0.84513007,2506.4,2506.1,3.99026]
[1730451037538,0.7654,2506.4,2506.1,3.99026]
[1730451037841,0.005,2506.4,2506.2,4.0737891]
[1730451039569,0.005,2506.4,2506.3,3.98994]
[1730451039950,0.005,2506.4,2506.3,0.08366799]
[1730451040387,0.005,2506.4,2506.1,7.98038]
[1730451040590,0.005,2506.4,2506.3,0.08366799]
[1730451040750,0.8157,2506.6,2506.3,0.08366799]
[1730451041083,0.005,2506.6,2506.4,0.08363689]
[1730451041960,0.08473007,2506.6,2506.4,0.08363689]
[1730451042355,0.005,2506.6,2506.4,0.08363689]
[1730451042655,0.005,2506.6,2506.5,0.08360579]
[1730451045785,0.005,2506.6,2506.5,4.07322579]
[1730451045995,0.005,2506.9,2506.6,3.98946]
[1730451046358,0.005,2506.9,2506.7,0.08354359]
[1730451048160,0.005,2506.9,2506.7,4.07284359]
[1730451052395,0.005,2506.9,2506.7,4.07276359]
[1730451053286,0.07973007,2507.1,2506.7,4.07276359]
[1730451053287,0.08473007,2507.1,2506.7,4.07276359]
[1730451053658,0.08473007,2507.1,2506.8,3.98912]
[1730451053962,0.08473007,2507.1,2506.9,0.08331467]
[1730451053963,0.005,2507.1,2506.9,0.08331467]
[1730451054891,0.005,2507.1,2506.7,4.79201]
[1730451055194,0.005,2507.1,2506.8,0.08334576]
[1730451055615,0.08473007,2507.1,2506.8,0.08334576]
[1730451056164,0.005,2506.9,2506.8,0.08334576]
[1730451057370,0.08473007,2507.1,2506.8,4.07248576]
[1730451060198,0.08473007,2507.1,2506.8,0.08334576]
[1730451060495,0.08473007,2507.1,2506.8,4.07247576]
[1730451060708,0.005,2507.1,2506.9,3.98897]
[1730451060888,0.005,2507.1,2507.0,0.08328358]
[1730451061199,0.005,2507.1,2506.8,3.98906]
[1730451061498,0.005,2507.1,2506.9,0.08309559]
[1730451061665,0.005,2507.1,2506.7,4.79202]
[1730451061865,0.005,2507.1,2506.8,0.08312669]
[1730451062760,0.005,2506.9,2506.8,0.08312669]
[1730451062973,7.89722007,2506.9,2506.8,0.08312669]
[1730451063179,0.005,2506.5,2506.2,3.99008]
[1730451063533,0.005,2506.5,2506.3,0.08055533]
[1730451063816,0.005,2506.5,2506.2,3.99008]
[1730451063994,0.005,2506.5,2506.0,0.7803]
[1730451063995,0.005,2506.5,2506.4,0.08052423]
[1730451064228,0.005,2506.5,2506.3,4.07038533]
[1730451064377,0.005,2506.5,2506.4,0.08052423]
[1730451064988,0.005,2506.7,2506.4,0.08052423]
[1730451065887,0.005,2506.5,2506.4,0.08052423]
[1730451067429,0.005,2506.5,2506.4,4.07030423]
[1730451067599,0.005,2506.5,2506.4,0.08052423]
[1730451071310,0.005,2506.7,2506.4,0.08052423]
[1730451071505,0.005,2506.5,2506.4,0.08052423]
[1730451071702,3.99462,2506.5,2506.4,0.08052423]
[1730451071930,3.99462,2506.5,2506.0,0.7803]
[1730451071931,5.206882,2506.5,2506.0,0.7803]
[1730451072123,4.88715007,2506.5,2506.1,0.08061755]
[1730451072851,0.8128,2506.2,2506.1,0.08061755]
[1730451073136,0.8128,2506.2,2505.8,3.99068]
[1730451073451,0.8128,2506.2,2505.9,0.08094132]
[1730451073901,0.8128,2506.2,2505.9,3.99056]
[1730451074103,0.8128,2506.2,2506.0,0.08094944]
[1730451081953,0.005,2506.3,2506.0,0.08094944]
[1730451082159,0.005,2506.3,2506.0,4.07136944]
[1730451082333,0.005,2506.3,2506.0,0.08094944]
[1730451086152,4.07471007,2506.3,2506.0,0.08094944]
[1730451086356,0.96930008,2506.3,2505.8,3.99073]
[1730451086542,0.08473007,2506.3,2505.9,0.08098057]
[1730451086941,0.08473007,2506.3,2505.9,4.07149057]
[1730451088675,0.8256,2506.0,2505.9,0.08098057]
[1730451088834,4.89575007,2506.0,2505.9,0.08098057]
[1730451089027,3.99072,2505.9,2505.3,7.98288]
[1730451089325,0.005,2505.7,2505.3,3.99143]
[1730451089468,4.07047007,2505.8,2505.4,0.0783018]
[1730451089469,0.005,2505.5,2505.4,0.0783018]
[1730451089775,0.08473007,2505.5,2505.1,4.05160964]
[1730451089957,0.08473007,2505.5,2505.2,0.07836406]
[1730451090561,0.005,2505.3,2505.2,0.07836406]
[1730451091080,0.08473007,2505.5,2505.3,3.99151]
[1730451091281,0.08473007,2505.5,2505.2,0.07836406]
[1730451091447,0.005,2505.4,2505.2,3.99167]
[1730451093250,0.005,2505.4,2505.3,3.99153]
[1730451095084,0.00410717,2505.4,2505.3,3.99153]
[1730451097091,0.83100717,2505.8,2505.4,3.99122]
[1730451097461,0.07973007,2505.7,2505.4,3.99122]
[1730451098188,0.07973007,2505.7,2505.4,3.98996048]
[1730451098755,0.07973007,2505.7,2505.3,3.99142]
[1730451099171,0.07973007,2505.7,2505.3,7.98287]
[1730451099452,0.07973007,2505.7,2505.3,3.99142]
[1730451099874,0.07973007,2505.7,2505.4,0.0758977]
[1730451100762,0.07973007,2505.7,2505.4,4.0672677]
[1730451101210,0.00410717,2505.5,2505.4,0.0758977]
[1730451102960,0.00410717,2505.5,2505.4,4.0672677]
[1730451104081,0.00410717,2505.5,2505.4,0.0758977]
[1730451105597,0.78500717,2505.5,2505.4,0.0758977]
[1730451105763,0.78500717,2505.5,2505.1,4.05162964]
[1730451105764,0.00410717,2505.3,2505.1,4.05162964]
[1730451106095,0.00410717,2505.3,2505.2,0.07595996]
[1730451107463,0.003027,2505.3,2505.2,0.07595996]
[1730451107708,0.765427,2505.3,2505.2,0.07595996]
[1730451108063,4.756957,2505.3,2505.2,0.07595996]
[1730451108260,5.63976671,2505.3,2505.2,0.07595996]
[1730451108508,5.71949678,2505.3,2505.2,0.07595996]
[1730451109334,8.72949678,2505.3,2505.2,0.07595996]
[1730451109609,0.8275,2504.8,2504.3,7.98604]
[1730451109789,0.07973007,2504.7,2504.3,7.98604]
[1730451109968,0.07973007,2504.7,2504.4,0.07119046]
[1730451110364,0.003027,2504.5,2504.4,0.07119046]
[1730451110571,0.003027,2504.5,2504.2,3.99319]
[1730451110774,0.003027,2504.5,2504.3,0.07156399]
[1730451112211,0.08275707,2504.7,2504.3,0.8078]
[1730451112371,0.003027,2504.9,2504.5,3.99273]
[1730451112575,0.003027,2504.9,2504.6,0.07155209]
[1730451113011,0.003027,2504.9,2504.6,4.06418209]
[1730451115012,0.003027,2504.9,2504.7,3.99241]
[1730451115369,0.003027,2504.9,2504.8,0.0714898]
[1730451115590,0.003027,2504.9,2504.7,3.99241]
[1730451115794,0.003027,2504.9,2504.8,0.0714898]
[1730451116036,0.003027,2504.9,2504.7,3.99241]
[1730451116204,0.003027,2504.9,2504.8,0.0714898]
[1730451116404,0.003027,2504.9,2504.7,3.99241]
[1730451116734,0.003027,2504.9,2504.8,0.0714898]
[1730451117098,0.003027,2504.9,2504.7,3.99241]
[1730451117328,0.003027,2504.9,2504.8,4.8754198]
[1730451117496,0.003027,2504.9,2504.8,0.0714898]
[1730451117830,0.003027,2504.9,2504.6,3.99255]
[1730451118036,0.003027,2504.9,2504.8,0.0714898]
[1730451118208,0.003027,2504.9,2504.7,0.07152094]
[1730451119135,0.003027,2504.9,2504.7,4.06395094]
[1730451119636,0.003027,2504.9,2504.7,0.07152094]
[1730451120637,0.003027,2504.9,2504.8,3.99233]
[1730451121230,0.003027,2504.9,2504.8,4.0638198]
[1730451121956,0.003027,2504.9,2504.8,0.0714898]
[1730451122237,0.003027,2504.9,2504.7,3.99235]
[1730451122434,0.003027,2504.9,2504.8,0.0714898]
[1730451122742,0.90943007,2505.1,2504.8,0.0714898]
[1730451122743,0.91245707,2505.1,2504.8,0.0714898]
[1730451122903,0.003027,2504.9,2504.7,3.99249]
[1730451123236,0.003027,2504.9,2504.7,7.98487]
[1730451123417,0.003027,2504.9,2504.7,3.99238]
[1730451124953,0.832727,2505.1,2504.7,3.99238]
[1730451125328,0.003027,2504.8,2504.7,3.99238]
[1730451126420,0.7577,2504.7,2504.3,3.99301]
[1730451127437,0.7577,2504.7,2504.0,0.8067]
[1730451127438,0.003027,2504.4,2504.0,0.8067]
[1730451127602,0.7577,2504.3,2504.0,3.99359]
[1730451127808,0.7577,2504.3,2503.9,3.99364]
[1730451128227,0.7577,2504.3,2504.0,3.9936]
[1730451128397,0.7577,2504.3,2503.9,7.98731]
[1730451128597,0.7577,2504.3,2504.0,3.99361]
[1730451129200,0.7577,2504.3,2504.1,0.06712914]
[1730451129399,0.84045707,2504.6,2504.3,3.99304]
[1730451129643,0.760727,2504.6,2504.4,0.06707798]
[1730451129829,0.003027,2504.8,2504.6,3.99254]
[1730451130198,0.003027,2504.8,2504.7,0.06698453]
[1730451130812,0.003027,2504.8,2504.6,3.99262]
[1730451131035,0.003027,2504.8,2504.7,0.06698453]
[1730451131749,0.003027,2504.8,2504.7,4.05947453]
[1730451131950,0.760727,2505.0,2504.7,4.05947453]
[1730451132551,0.760727,2505.0,2504.7,8.05186453]
[1730451132921,0.760727,2505.0,2504.7,4.05937453]
[1730451133249,0.760727,2505.0,2504.8,3.99233]
[1730451133463,0.760727,2505.0,2504.7,4.05937453]
[1730451133619,0.760727,2505.0,2504.9,0.06692224]
[1730451133818,0.760727,2505.0,2504.7,3.99239]
[1730451134015,0.760727,2505.0,2504.8,0.06695338]
[1730451134424,0.760727,2505.0,2504.9,0.06692224]
[1730451134570,0.760727,2505.0,2504.7,3.99239]
[1730451134771,0.760727,2505.0,2504.8,0.06695338]
[1730451134978,0.760727,2505.0,2504.7,3.99239]
[1730451135268,0.760727,2505.0,2504.8,0.06695338]
[1730451135684,0.760727,2505.0,2504.7,3.99239]
[1730451135834,0.760727,2505.0,2504.9,0.06692224]
[1730451136035,0.760727,2505.0,2504.8,4.05927338]
[1730451136274,0.003027,2505.0,2504.9,0.06692224]
[1730451137147,0.003027,2505.0,2504.7,3.99239]
[1730451137347,0.003027,2505.0,2504.8,0.06477807]
[1730451137565,0.003027,2505.0,2504.7,3.99239]
[1730451137780,0.003027,2505.0,2504.8,0.06477807]
[1730451137978,0.003027,2505.0,2504.7,3.99239]
[1730451138185,0.003027,2505.0,2504.8,4.05702807]
[1730451138343,0.003027,2505.0,2504.8,0.06477807]
[1730451138540,0.003027,2505.0,2504.7,7.98479]
[1730451138886,0.003027,2505.0,2504.8,0.06479107]
[1730451139091,0.003027,2505.0,2504.9,3.99217]
[1730451139237,0.003027,2505.0,2504.4,0.8022]
[1730451139433,0.003027,2505.0,2504.9,0.06475993]
[1730451139646,0.003027,2505.0,2504.7,3.99241]
[1730451139965,0.003027,2505.0,2504.8,0.06479107]
[1730451140269,0.003027,2505.0,2504.8,3.99233]
[1730451140473,0.003027,2505.0,2504.9,0.06475993]
[1730451141357,0.003027,2505.0,2504.9,4.05692993]
[1730451141988,0.003027,2505.0,2504.9,0.06475993]
[1730451142960,0.003027,2505.0,2504.9,4.05692993]
[1730451144460,0.003027,2505.0,2504.9,0.06475993]
[1730451144662,0.003027,2505.0,2504.9,4.05692993]
[1730451146390,0.003027,2505.2,2505.1,3.99185]
[1730451146594,0.003027,2505.2,2505.1,4.05645979]
[1730451146967,0.85525707,2505.5,2505.1,4.05645979]
[1730451147198,0.85525707,2505.5,2505.3,3.99153]
[1730451147199,0.08275707,2505.5,2505.3,3.99153]
[1730451147413,0.003027,2505.5,2505.4,4.0558864]
[1730451147906,0.003027,2505.5,2505.4,0.0645164]
[1730451150581,0.003027,2505.5,2505.2,3.99167]
[1730451150788,0.003027,2505.5,2505.3,0.06432634]
[1730451151090,0.003027,2505.3,2505.2,3.99167]
[1730451151463,0.003027,2505.5,2505.1,3.99174]
[1730451151663,0.003027,2505.5,2505.3,3.99153]
[1730451151895,0.003027,2505.5,2505.1,3.99174]
[1730451152100,0.003027,2505.5,2505.2,3.99169]
[1730451152561,0.003027,2505.5,2505.0,4.74661]
[1730451152562,0.7617,2505.4,2505.0,4.74661]
[1730451152765,0.003027,2504.9,2504.6,3.99256]
[1730451153105,0.003027,2504.9,2504.5,3.99281]
[1730451153106,0.08275707,2504.9,2504.5,3.99281]
[1730451153328,0.08275707,2504.9,2504.1,0.8115]
[1730451153329,3.99235,2504.8,2504.1,0.8115]
[1730451153535,0.07973007,2504.7,2504.2,3.99316]
[1730451153703,0.07973007,2504.7,2504.3,3.99303]
[1730451153912,0.07973007,2504.7,2504.3,7.98606]
[1730451154224,0.07973007,2504.7,2504.3,3.99303]
[1730451154434,0.753,2504.6,2504.3,3.99303]
[1730451155628,0.003027,2504.5,2504.3,3.99303]
[1730451155926,0.003027,2504.5,2504.3,7.98603]
[1730451156095,0.003027,2504.5,2504.3,7.98604]
[1730451156437,0.003027,2504.5,2504.3,3.993]
[1730451156733,0.003027,2504.7,2504.4,3.99297]
[1730451157624,0.003027,2504.5,2504.4,3.99297]
[1730451158503,0.003027,2504.5,2504.1,3.99344]
[1730451158504,0.7961,2504.4,2504.1,3.99344]
[1730451158733,0.07973007,2504.3,2503.8,0.7521]
[1730451158933,0.7961,2504.4,2504.0,3.99352]
[1730451159098,0.87583007,2504.4,2504.0,3.9935]
[1730451159456,0.87583007,2504.4,2504.1,0.05478427]
[1730451159733,0.87583007,2504.4,2504.1,4.04819427]
[1730451160227,0.7961,2504.4,2504.1,4.04819427]
[1730451160428,0.7961,2504.4,2504.1,0.05478427]
[1730451160842,0.7961,2504.4,2504.1,4.04819427]
[1730451162041,0.003027,2504.2,2504.1,0.05478427]
[1730451162344,0.003027,2504.2,2503.9,3.99375]
[1730451162652,0.003027,2504.2,2504.0,0.05486089]
[1730451162809,0.003027,2504.2,2503.8,7.98766]
[1730451163141,0.003027,2504.2,2503.9,4.04854205]
[1730451163447,0.003027,2504.2,2503.9,0.05489205]
[1730451164483,0.003027,2504.2,2504.0,3.99356]
[1730451165048,0.003027,2504.2,2504.1,0.05308334]
[1730451171864,0.003027,2504.2,2504.1,4.04653334]
[1730451172365,0.003027,2504.2,2504.1,0.05308334]
[1730451173663,0.003027,2504.2,2504.1,4.04653334]
[1730451173865,0.003027,2504.4,2504.1,4.87523334]
[1730451174167,0.003027,2504.4,2504.2,3.99322]
[1730451174653,0.003027,2504.4,2504.3,0.05134601]
[1730451180558,0.003027,2504.4,2504.2,3.9932]
[1730451180765,0.003027,2504.4,2504.3,4.04447601]
[1730451181446,0.003027,2504.4,2504.3,0.05134601]
[1730451181651,0.003027,2504.4,2504.1,4.82215]
[1730451181848,0.003027,2504.4,2504.2,0.05137717]
[1730451182377,0.003027,2504.4,2504.2,4.04456717]
[1730451184180,0.84985707,2504.8,2504.5,3.99281]
[1730451184516,0.003027,2504.8,2504.6,4.04198594]
[1730451184852,0.003027,2504.8,2504.7,3.99249]
[1730451185052,0.003027,2504.8,2504.7,4.04189557]
[1730451185483,0.003027,2504.8,2504.7,0.04940557]
[1730451186159,0.003027,2504.8,2504.6,3.99265]
[1730451186375,0.003027,2504.8,2504.7,4.04185662]
[1730451187686,0.003027,2504.8,2504.7,0.04936662]
[1730451188292,0.003027,2504.8,2504.7,0.04932767]
[1730451189691,0.003027,2504.8,2504.4,3.99289]
[1730451189863,0.08275707,2504.8,2504.7,0.04933091]
[1730451190078,1.69575378,2504.8,2504.4,3.99289]
[1730451190280,0.88905707,2504.8,2504.7,0.04933091]
[1730451190470,0.88905707,2504.8,2504.4,3.99289]
[1730451190790,0.88905707,2504.8,2504.5,4.04215321]
[1730451191180,0.809327,2504.8,2504.5,4.04215321]
[1730451192330,0.809327,2504.8,2504.6,3.99255]
[1730451192629,0.003027,2504.8,2504.7,0.04933091]
[1730451194226,0.08275707,2505.0,2504.7,4.04182091]
[1730451194378,0.003027,2505.0,2504.9,3.99217]
[1730451194789,0.003027,2505.3,2505.1,3.99176]
[1730451195125,0.003027,2505.3,2505.2,0.04907135]
[1730451195629,0.08275707,2505.3,2505.2,0.04907135]
[1730451195920,0.56536578,2505.3,2504.9,0.7987]
[1730451196211,0.56536578,2505.3,2503.8,2.08579724]
[1730451196212,0.8317,2505.0,2504.6,3.99256]
[1730451197685,0.8317,2505.0,2504.6,7.9851]
[1730451197886,0.8317,2505.0,2504.6,3.99254]
[1730451198086,0.8317,2505.0,2504.7,3.99246]
[1730451198535,1.32232571,2505.0,2504.6,3.99254]
[1730451198709,1.32232571,2505.0,2504.7,3.99247]
[1730451199101,1.32232571,2505.0,2504.6,3.99254]
[1730451199834,0.003027,2504.7,2504.4,3.99287]
[1730451200342,0.003027,2504.7,2504.5,3.99278]
[1730451201238,0.003027,2504.7,2504.6,3.99265]
[1730451201699,0.003027,2504.9,2504.7,3.99237]
[1730451202435,0.003027,2504.7,2504.6,3.99256]
[1730451203212,0.003027,2504.7,2504.4,7.98576]
[1730451203537,0.003027,2504.7,2504.5,3.99276]
[1730451204306,0.003027,2504.7,2504.6,4.04184978]
[1730451204941,0.003027,2504.9,2504.6,4.04184978]
[1730451205304,0.003027,2504.9,2504.6,0.04919978]
[1730451205305,3.995517,2504.7,2504.6,0.04919978]
[1730451205505,7.756517,2504.7,2504.6,0.04919978]
[1730451205731,0.003027,2504.3,2503.9,4.79758]
[1730451205942,0.761327,2504.3,2503.9,4.79758]
[1730451206117,0.761327,2504.3,2504.0,3.9936]
[1730451209213,0.003027,2504.1,2503.9,3.99367]
[1730451209948,0.003027,2504.1,2503.9,7.98735]
[1730451210414,0.003027,2504.1,2503.9,3.99367]
[1730451211352,0.07973007,2504.2,2503.9,3.99367]
[1730451211544,0.003027,2504.1,2503.9,3.99367]
[1730451212349,0.003027,2504.1,2503.7,3.994]
[1730451212553,0.08275707,2504.1,2503.7,3.994]
[1730451212919,0.08275707,2504.1,2503.3,4.40345976]
[1730451212920,0.003027,2503.6,2503.4,3.99446]
[1730451214345,0.003027,2503.6,2503.5,3.9944]
[1730451215742,0.003027,2503.6,2503.4,3.99454]
[1730451217922,0.003027,2503.6,2503.4,3.99447]
[1730451219261,0.003027,2503.6,2503.5,0.04527665]
[1730451220254,0.793027,2503.6,2503.5,0.04527665]
[1730451220434,0.003027,2503.3,2503.2,0.1220481]
[1730451220755,3.08275707,2503.3,2503.2,0.1220481]
[1730451220969,3.86949778,2503.3,2503.2,0.1220481]
[1730451221139,4.65949778,2503.3,2503.2,0.16613454]
[1730451221736,0.87275707,2503.3,2503.2,0.16613454]
[1730451225672,0.003027,2503.3,2503.2,4.16101454]
[1730451225970,0.89903007,2503.5,2503.3,3.9947]
[1730451225971,0.08275707,2503.5,2503.3,3.9947]
[1730451226476,0.08275707,2503.5,2503.4,0.04413453]
[1730451226681,0.003027,2503.5,2503.4,0.04413453]
[1730451229075,0.07973007,2503.6,2503.4,0.04413453]
[1730451229284,0.822327,2503.7,2503.4,0.04413453]
[1730451229578,0.003027,2503.5,2503.4,0.04413453]
[1730451233515,0.003027,2503.5,2503.2,4.1169081]
[1730451233711,0.003027,2503.5,2503.4,0.04418]
[1730451234003,0.003027,2503.5,2503.2,4.1169081]
[1730451234211,0.003027,2503.5,2503.4,0.04418]
[1730451234397,0.003027,2503.5,2503.2,4.1169081]
[1730451234716,0.003027,2503.5,2503.3,0.04421118]
[1730451235092,0.003027,2503.5,2503.2,4.1169081]
[1730451235410,0.003027,2503.5,2503.3,0.04421118]
[1730451235718,0.003027,2503.5,2503.3,3.99459]
[1730451236011,0.003027,2503.5,2503.4,0.04418]
[1730451237385,0.003027,2503.5,2503.2,4.1168281]
[1730451237386,0.003027,2503.5,2503.2,0.1220481]
[1730451237696,0.003027,2503.5,2503.3,4.03890819]
[1730451238098,0.003027,2503.5,2503.3,8.03353819]
[1730451238285,0.003027,2503.5,2503.3,4.03882819]
[1730451241325,0.003027,2503.5,2503.3,8.03344819]
[1730451241992,0.003027,2503.5,2503.3,4.03881819]
[1730451244432,4.80326,2503.4,2503.3,0.04419819]
[1730451244733,4.80326,2503.4,2503.2,0.1220481]
[1730451244734,1.67703178,2503.4,2503.2,0.1220481]
[1730451244933,0.003027,2503.3,2503.2,0.1220481]
[1730451245935,0.003027,2503.3,2503.2,4.1169281]
[1730451248339,0.003027,2503.5,2503.3,3.99457]
[1730451248539,0.003027,2503.5,2503.4,3.99456]
[1730451248976,0.003027,2503.5,2503.3,4.75371]
[1730451249289,0.003027,2503.5,2503.4,0.04411096]
[1730451250767,0.003027,2503.5,2503.4,4.03867096]
[1730451253659,0.003027,2503.5,2503.4,0.04411096]
[1730451254347,0.003027,2503.5,2503.4,4.03867096]
[1730451254782,0.003027,2503.5,2503.4,0.04411096]
[1730451254990,0.003027,2503.5,2503.4,4.03867096]
[1730451257105,3.99356,2504.1,2503.4,0.04411096]
[1730451257106,0.754527,2504.1,2503.4,0.04411096]
[1730451257401,0.003027,2503.9,2503.5,3.9943]
[1730451257567,0.95693677,2503.9,2503.5,3.9943]
[1730451257899,0.08275707,2503.9,2503.6,4.03687128]
[1730451258483,0.003027,2503.9,2503.6,4.03687128]
[1730451261699,0.003027,2503.9,2503.6,4.03681128]
[1730451266303,0.003027,2503.9,2503.7,0.8027]
[1730451266502,0.003027,2503.9,2503.8,0.04250773]
[1730451267065,0.794327,2503.9,2503.8,0.04250773]
[1730451267410,0.794327,2503.9,2503.4,3.99446]
[1730451267411,0.003027,2503.6,2503.4,3.99446]
[1730451269905,0.003027,2503.6,2503.4,7.98894]
[1730451270409,0.003027,2503.6,2503.4,3.99446]
[1730451272429,0.003027,2503.6,2503.5,3.9944]
[1730451272728,0.003027,2503.6,2503.4,3.99446]
[1730451272926,0.003027,2503.6,2503.4,7.98894]
[1730451273729,0.003027,2503.6,2503.4,7.98893]
[1730451274397,0.003027,2503.6,2503.4,3.99446]
[1730451274908,0.003027,2503.6,2503.4,7.98893]
[1730451276202,0.003027,2503.6,2503.4,3.99446]
[1730451276523,0.003027,2503.6,2503.4,7.98894]
[1730451276828,0.003027,2503.6,2503.4,3.99446]
[1730451278096,0.003027,2503.6,2503.5,3.9944]
[1730451279212,0.003027,2503.6,2503.5,4.03704022]
[1730451280513,0.003027,2503.6,2503.5,0.04264022]
[1730451281200,0.003027,2503.6,2503.4,3.99455]
[1730451281397,0.003027,2503.6,2503.5,0.04264022]
[1730451282440,0.003027,2503.6,2503.5,4.03704022]
[1730451284716,0.003027,2503.8,2503.5,0.04264022]
[1730451284961,0.08275707,2504.0,2503.7,3.99408]
[1730451285145,0.08275707,2504.0,2503.8,0.0425467]
[1730451285353,0.08275707,2504.0,2503.7,3.99408]
[1730451285650,0.08275707,2504.0,2503.8,0.0425467]
[1730451286050,0.08275707,2504.0,2503.6,3.99424]
[1730451286283,0.08275707,2504.0,2503.9,0.04251553]
[1730451286589,0.87306878,2504.0,2503.9,0.04251553]
[1730451287087,0.87306878,2504.0,2503.6,3.99424]
[1730451287282,0.08275707,2504.0,2503.6,3.99424]
[1730451287488,0.003027,2503.7,2503.6,3.99424]
[1730451288082,0.003027,2503.7,2503.5,3.99434]
[1730451288673,0.003027,2503.7,2503.5,7.98866]
[1730451288892,0.003027,2503.7,2503.5,3.99432]
[1730451289397,0.003027,2503.7,2503.6,3.99424]
[1730451290104,0.003027,2503.9,2503.6,3.99424]
[1730451290411,0.003027,2503.7,2503.6,3.99424]
[1730451291191,0.003027,2503.7,2503.5,7.98864]
[1730451291903,0.003027,2503.7,2503.5,3.99432]